bitfinex/quotes_SOLUSD_20250228
["timestamp","ask_amount","ask_price","bid_price","bid_amount"]
[1740755107890,0.03,144.87,144.81,51.27525817]
[1740755108394,0.03,144.87,144.82,0.14216157]
[1740755108596,0.03,144.87,144.82,18.79181043]
[1740755108803,0.03,144.87,144.86,312.0]
[1740755109578,0.03,144.87,144.86,525.4702686]
[1740755109779,0.03,144.97,144.92,0.14216157]
[1740755109976,0.03,144.97,144.91,187.77525817]
[1740755110273,0.03,144.97,144.86,187.77525817]
[1740755110773,0.17216157,144.97,144.86,187.77525817]
[1740755110973,20.0,144.94,144.86,187.77525817]
[1740755111197,24.8296,144.94,144.84,206.42490703]
[1740755111689,82.94216157,144.93,144.81,304.09525817]
[1740755111890,82.8,144.93,144.81,304.09525817]
[1740755112091,20.0,144.9,144.81,304.09525817]
[1740755112417,10.9,144.91,144.81,51.27525817]
[1740755112582,20.0,144.88,144.81,51.27525817]
[1740755112990,20.0,144.88,144.85,312.0]
[1740755113186,10.9,144.91,144.85,312.0]
[1740755113388,82.8,144.95,144.83,18.64964886]
[1740755113585,24.0887,144.96,144.85,18.79181043]
[1740755113795,28.9177,144.96,144.85,206.5670686]
[1740755114902,20.0,144.91,144.83,187.77525817]
[1740755115096,18.79181043,144.92,144.83,51.27525817]
[1740755115409,18.64964886,144.9,144.79,51.27525817]
[1740755115611,101.44964886,144.9,144.79,187.77525817]
[1740755115800,20.0,144.87,144.79,187.77525817]
[1740755115996,20.0,144.87,144.79,51.27525817]
[1740755116196,93.68,144.89,144.81,0.14216157]
[1740755116406,93.68,144.89,144.87,312.0]
[1740755116605,93.68,144.89,144.8,187.77525817]
[1740755116606,10.88,144.89,144.8,187.77525817]
[1740755116806,4.8315,144.88,144.8,51.27525817]
[1740755117010,10.88,144.89,144.81,18.79181043]
[1740755117313,0.03,144.97,144.85,20.14216157]
[1740755117618,4.8586,144.97,144.86,18.64964886]
[1740755118119,20.0,144.94,144.85,136.5]
[1740755118290,20.0,144.9,144.83,51.27525817]
[1740755118487,20.0,144.86,144.76,187.77525817]
[1740755118912,36.9139,144.85,144.76,51.27525817]
[1740755119110,119.7139,144.85,144.76,51.27525817]
[1740755119314,82.94216157,144.84,144.74,187.83825817]
[1740755119518,20.0,144.81,144.74,51.33825817]
[1740755119713,20.0,144.8,144.78,312.0]
[1740755119942,10.88,144.79,144.74,0.063]
[1740755120121,20.0,144.75,144.74,0.063]
[1740755120325,38.79181043,144.75,144.63,191.31322246]
[1740755120526,20.0,144.71,144.63,54.81322246]
[1740755120731,30.88,144.71,144.63,51.27525817]
[1740755120895,30.88,144.71,144.68,312.0]
[1740755121533,10.88,144.71,144.63,58.18925817]
[1740755121838,10.88,144.71,144.64,18.79181043]
[1740755122004,10.88,144.76,144.64,206.5670686]
[1740755122336,10.88,144.76,144.68,18.79181043]
[1740755122498,13.31,144.83,144.72,18.79181043]
[1740755122699,93.68,144.88,144.74,0.14216157]
[1740755122897,10.88,144.88,144.76,18.79181043]
[1740755123104,10.88,144.88,144.76,206.5670686]
[1740755123830,20.0,144.84,144.76,51.27525817]
[1740755124130,20.0,144.8,144.69,187.77525817]
[1740755124326,20.0,144.76,144.69,51.27525817]
[1740755124537,20.0,144.76,144.74,312.0]
[1740755125037,20.0,144.75,144.63,6.9141]
[1740755125341,20.0,144.75,144.64,18.64964886]
[1740755125523,20.0,144.75,144.63,187.77525817]
[1740755125703,18.79181043,144.74,144.63,187.77525817]
[1740755126102,20.0,144.7,144.63,51.27525817]
[1740755126929,20.0,144.66,144.59,0.063]
[1740755127135,20.0,144.65,144.59,0.063]
[1740755127450,10.88,144.64,144.59,0.063]
[1740755128029,10.88,144.64,144.63,312.0]
[1740755128422,82.8,144.69,144.63,312.0]
[1740755128728,10.88,144.7,144.63,71.27525817]
[1740755128933,10.88,144.7,144.64,18.79181043]
[1740755129109,93.68,144.75,144.64,206.5670686]
[1740755129311,12.0504,144.78,144.64,206.5670686]
[1740755129533,12.0504,144.78,144.68,0.14216157]
[1740755129719,10.88,144.8,144.69,18.64964886]
[1740755129925,18.79181043,144.79,144.69,187.77525817]
[1740755130122,18.64964886,144.76,144.67,51.27525817]
[1740755130431,20.0,144.72,144.64,51.27525817]
[1740755130632,10.88,144.71,144.6,6.9156]
[1740755130849,10.88,144.76,144.65,18.79181043]
[1740755131014,10.88,144.76,144.66,6.9127]
[1740755131208,10.88,144.76,144.67,18.79181043]
[1740755131547,82.8,144.83,144.75,312.0]
[1740755131713,93.68,144.82,144.75,312.0]
[1740755132034,18.64964886,144.81,144.71,187.77525817]
[1740755132221,101.44964886,144.81,144.71,51.27525817]
[1740755132431,82.8,144.81,144.71,51.27525817]
[1740755132610,13.3316,144.84,144.72,18.79181043]
[1740755132808,10.88,144.87,144.76,18.79181043]
[1740755133020,20.0,144.84,144.76,187.77525817]
[1740755133229,20.0,144.83,144.76,51.27525817]
[1740755133628,10.88,144.87,144.76,51.27525817]
[1740755133837,10.88,144.86,144.76,187.77525817]
[1740755134139,38.79181043,144.82,144.71,51.27525817]
[1740755134339,20.0,144.77,144.71,51.27525817]
[1740755134549,20.0,144.76,144.67,51.27525817]
[1740755134708,10.88,144.77,144.68,18.79181043]
[1740755134915,10.88,144.77,144.67,196.68735817]
[1740755134916,93.68,144.82,144.72,18.79181043]
[1740755135145,10.88,144.82,144.81,312.0]
[1740755135322,82.8,144.85,144.81,312.0]
[1740755135631,10.86,144.87,144.76,0.14216157]
[1740755135821,10.86,144.87,144.76,187.91741974]
[1740755136216,10.86,144.87,144.76,51.27525817]
[1740755136217,18.64964886,144.86,144.76,51.27525817]
[1740755136419,20.0,144.83,144.76,51.27525817]
[1740755136633,20.0,144.82,144.72,187.77525817]
[1740755136837,0.14216157,144.81,144.72,51.27525817]
[1740755137017,4.1433,144.81,144.72,51.27525817]
[1740755137217,4.1425,144.84,144.72,187.77525817]
[1740755137423,18.64964886,144.83,144.72,187.77525817]
[1740755137622,82.8,144.85,144.73,18.79181043]
[1740755137818,86.9422,144.85,144.73,206.5670686]
[1740755138424,82.8,144.85,144.76,20.0]
[1740755138622,82.8,144.86,144.84,312.0]
[1740755138825,4.1417,144.87,144.69,187.77525817]
[1740755138826,20.64964886,144.84,144.69,187.77525817]
[1740755139023,20.0,144.76,144.69,187.77525817]
[1740755139221,18.64964886,144.79,144.69,51.27525817]
[1740755139222,10.86,144.75,144.69,51.27525817]
[1740755139423,10.86,144.75,144.64,187.77525817]
[1740755140139,20.0,144.71,144.63,0.063]
[1740755140340,20.0,144.7,144.63,0.063]
[1740755140723,20.0,144.69,144.63,0.063]
[1740755140923,4.1473,144.67,144.63,0.063]
[1740755141437,49.65181043,144.68,144.63,0.063]
[1740755141438,30.86,144.68,144.63,0.063]
[1740755141818,35.0071,144.68,144.67,312.0]
[1740755142043,35.0071,144.68,144.63,0.063]
[1740755142044,18.79181043,144.67,144.63,0.063]
[1740755143029,4.1476,144.66,144.63,0.063]
[1740755144128,10.86,144.68,144.63,0.063]
[1740755145122,10.86,144.68,144.67,312.0]
[1740755145448,15.007,144.68,144.67,312.0]
[1740755145620,33.79881043,144.68,144.67,312.0]
[1740755146446,20.0,144.65,144.63,0.063]
[1740755146627,4.147,144.68,144.63,0.063]
[1740755146827,4.1465,144.7,144.63,0.063]
[1740755147350,4.1465,144.7,144.69,312.0]
[1740755148447,24.28866157,144.7,144.69,312.0]
[1740755148626,42.93831043,144.7,144.69,312.0]
[1740755149022,0.14216157,144.69,144.63,0.063]
[1740755149226,82.8,144.68,144.63,0.063]
[1740755149628,82.8,144.73,144.64,18.79181043]
[1740755149846,82.8,144.75,144.64,206.5670686]
[1740755150036,82.8,144.75,144.74,312.0]
[1740755150236,18.64964886,144.75,144.74,312.0]
[1740755150436,18.79181043,144.74,144.63,0.063]
[1740755150645,18.79181043,144.7,144.63,0.063]
[1740755150848,10.86,144.7,144.63,0.063]
[1740755151048,38.79181043,144.69,144.63,0.063]
[1740755151274,20.0,144.69,144.63,0.063]
[1740755151455,10.86,144.71,144.63,0.063]
[1740755151661,10.86,144.71,144.63,207.83825817]
[1740755151976,129.0263,144.78,144.64,18.79181043]
[1740755152276,129.0263,144.78,144.64,51.27525817]
[1740755152277,18.79181043,144.76,144.64,51.27525817]
[1740755152574,20.0,144.71,144.63,0.063]
[1740755153472,20.0,144.71,144.7,312.0]
[1740755153849,10.86,144.77,144.7,312.0]
[1740755154066,10.86,144.77,144.65,0.14216157]
[1740755154256,20.0,144.74,144.63,51.33825817]
[1740755154460,82.8,144.73,144.64,18.79181043]
[1740755154654,82.8,144.76,144.64,206.5670686]
[1740755154985,20.0,144.73,144.64,206.5670686]
[1740755155472,20.0,144.73,144.64,187.77525817]
[1740755155772,20.0,144.69,144.63,0.063]
[1740755155964,82.8,144.69,144.63,0.063]
[1740755156958,82.8,144.69,144.68,312.0]
[1740755157262,105.04741043,144.69,144.68,312.0]
[1740755157466,20.0,144.67,144.63,0.063]
[1740755157674,20.0,144.65,144.63,0.063]
[1740755158771,102.94216157,144.64,144.63,0.063]
[1740755158971,42.60708015,144.64,144.63,0.0001]
[1740755159147,42.60708015,144.64,144.55,0.063]
[1740755159148,20.0,144.56,144.55,0.063]
[1740755159351,34.44086157,144.56,144.55,0.063]
[1740755159957,20.0,144.52,144.49,0.063]
[1740755160266,0.14216157,144.51,144.49,0.063]
[1740755160457,38.64964886,144.5,144.49,0.063]
[1740755160655,38.79181043,144.5,144.49,0.063]
[1740755161055,1.81730975,144.53,144.49,0.063]
[1740755161278,12.65730975,144.53,144.49,0.063]
[1740755161587,10.84,144.62,144.5,18.79181043]
[1740755161872,10.84,144.62,144.5,206.5670686]
[1740755162178,10.84,144.62,144.51,0.14216157]
[1740755162371,10.84,144.62,144.5,187.77525817]
[1740755162575,18.64964886,144.61,144.5,51.27525817]
[1740755162883,20.0,144.54,144.49,0.063]
[1740755163178,82.8,144.53,144.49,0.063]
[1740755163670,82.8,144.52,144.49,0.063]
[1740755165773,10.84,144.54,144.49,0.063]
[1740755165967,86.2582,144.58,144.49,0.063]
[1740755166175,86.2579,144.6,144.49,187.83825817]
[1740755166359,18.79181043,144.59,144.49,187.83825817]
[1740755166554,20.0,144.54,144.49,0.063]
[1740755166761,0.14216157,144.52,144.49,0.063]
[1740755166962,82.8,144.51,144.49,0.063]
[1740755167169,84.75920186,144.5,144.49,0.063]
[1740755167367,106.86905072,144.5,144.49,0.063]
[1740755167771,24.06905072,144.5,144.49,0.063]
[1740755168871,3.81752782,144.55,144.49,0.063]
[1740755169053,10.84,144.56,144.49,0.063]
[1740755169054,3.4586,144.57,144.49,0.063]
[1740755169259,7.8437,144.6,144.49,0.063]
[1740755169260,14.298,144.6,144.49,0.063]
[1740755169468,18.79181043,144.56,144.49,0.063]
[1740755169667,1.81654787,144.57,144.54,312.0]
[1740755169871,18.64964886,144.57,144.54,312.0]
[1740755170072,20.14216157,144.5,144.49,0.063]
[1740755170285,49.63181043,144.5,144.49,0.063]
[1740755170979,30.84,144.5,144.49,312.063]
[1740755171373,4.0,144.56,144.49,318.9837]
[1740755171374,10.84,144.56,144.49,318.9837]
[1740755171573,12.9569,144.61,144.49,194.75895817]
[1740755172077,101.44964886,144.6,144.49,6.9838]
[1740755172259,0.14216157,144.58,144.49,0.063]
[1740755172578,20.14216157,144.53,144.49,0.063]
[1740755172779,0.14216157,144.51,144.49,0.063]
[1740755172976,102.8,144.53,144.49,0.063]
[1740755173169,82.8,144.57,144.49,6.9836]
[1740755173366,82.8,144.61,144.51,6.9199]
[1740755173565,82.8,144.61,144.51,58.19515817]
[1740755173770,18.64964886,144.6,144.51,51.27525817]
[1740755173986,18.64964886,144.58,144.5,7.5888]
[1740755174283,0.03,144.62,144.54,0.14216157]
[1740755174472,0.03,144.62,144.61,312.0]
[1740755176282,0.03,144.62,144.61,318.9151]
[1740755176584,18.64964886,144.7,144.61,318.9151]
[1740755176886,18.64964886,144.7,144.61,187.77525817]
[1740755177182,101.44964886,144.72,144.62,0.14216157]
[1740755177362,82.8,144.72,144.62,0.14216157]
[1740755177570,85.564,144.72,144.62,7.05676157]
[1740755177781,82.8,144.72,144.62,7.05676157]
[1740755178182,0.03,144.73,144.64,0.14216157]
[1740755178387,0.03,144.73,144.64,187.91741974]
[1740755178787,2.7937,144.73,144.64,187.77525817]
[1740755178976,22.7937,144.73,144.64,187.77525817]
[1740755179172,0.03,144.73,144.65,0.14216157]
[1740755179380,0.03,144.73,144.65,6.9129]
[1740755179579,0.03,144.73,144.64,194.68885817]
[1740755179783,38.67964886,144.73,144.72,312.0]
[1740755180290,38.82181043,144.73,144.72,312.0]
[1740755180976,0.14216157,144.72,144.6,202.99675817]
[1740755181199,82.8,144.71,144.6,59.58125817]
[1740755181410,0.14216157,144.7,144.6,59.58125817]
[1740755181579,18.79181043,144.68,144.6,8.306]
[1740755181908,20.0,144.63,144.57,51.27525817]
[1740755182204,20.0,144.63,144.54,58.93205817]
[1740755182403,20.0,144.63,144.54,195.43205817]
[1740755182606,10.82,144.65,144.54,202.35035817]
[1740755182807,2.7645,144.69,144.58,18.79181043]
[1740755182976,10.82,144.71,144.62,0.14216157]
[1740755183174,13.5842,144.71,144.62,187.91741974]
[1740755183375,0.03,144.73,144.67,6.9122]
[1740755183588,0.03,144.73,144.68,0.14216157]
[1740755183782,82.83,144.81,144.71,20.14216157]
[1740755183987,0.03,144.81,144.71,207.91741974]
[1740755184200,0.03,144.81,144.77,20.0]
[1740755184406,0.03,144.81,144.78,33.2921]
[1740755184595,0.03,144.81,144.79,0.14216157]
[1740755184906,0.03,144.88,144.8,312.0]
[1740755185416,0.03,144.87,144.81,7.04776157]
[1740755185776,0.03,144.88,144.85,8.0887]
[1740755185981,0.03,144.88,144.85,195.86395817]
[1740755186178,0.03,144.88,144.85,8.0887]
[1740755186596,0.03,144.88,144.81,187.77525817]
[1740755187180,0.03,144.88,144.82,0.14216157]
[1740755187378,0.03,144.88,144.82,187.77525817]
[1740755187577,0.03,144.88,144.82,194.68035817]
[1740755187909,82.8,144.99,144.83,2.1090278]
[1740755188118,2.7593,144.96,144.86,20.14216157]
[1740755188281,2.7593,144.96,144.86,207.91741974]
[1740755188488,2.7593,144.96,144.95,312.0]
[1740755188701,89.6971,144.99,144.95,312.0]
[1740755188702,85.5589,144.99,144.95,312.0]
[1740755188920,82.8,144.99,144.91,7.8211]
[1740755189216,2.759,144.98,144.91,7.8211]
[1740755189426,0.03,145.0,144.91,7.8211]
[1740755189615,20.0,144.99,144.91,7.8211]
[1740755189928,18.67964886,145.0,144.91,7.8211]
[1740755190097,0.03,145.0,144.92,0.14216157]
[1740755190919,0.03,145.0,144.95,20.14216157]
[1740755191122,0.03,145.0,144.95,51.27525817]
[1740755191330,76.02,145.05,144.96,0.14216157]
[1740755191531,2.7572,145.07,144.99,20.0]
[1740755191831,2.7571,145.08,144.99,207.77525817]
[1740755191998,2.7571,145.08,145.06,312.0]
[1740755192208,2.7869,145.09,145.06,312.0]
[1740755192428,76.02,145.08,144.99,51.27525817]
[1740755192605,20.0,145.05,144.95,187.77525817]
[1740755193001,76.02,145.06,144.96,0.14216157]
[1740755193301,18.64964886,145.05,144.95,187.77525817]
[1740755193506,10.8,145.07,144.99,20.0]
[1740755193705,2.7869,145.09,145.0,18.79181043]
[1740755194308,2.7869,145.09,145.0,0.14216157]
[1740755194507,2.7869,145.09,145.0,51.27525817]
[1740755195304,0.03,145.09,145.0,51.27525817]
[1740755195541,20.0,145.07,144.94,304.11825817]
[1740755195720,18.64964886,145.06,144.94,304.11825817]
[1740755196021,18.64964886,145.06,144.94,307.60037451]
[1740755196226,96.02,145.07,144.95,20.79181043]
[1740755196227,20.0,145.07,144.95,20.79181043]
[1740755196410,0.03,145.09,144.99,0.14216157]
[1740755196616,0.03,145.09,145.06,312.0]
[1740755197118,18.64964886,145.06,144.99,51.27525817]
[1740755197309,76.02,145.07,144.99,51.27525817]
[1740755197515,2.7574,145.06,144.99,51.27525817]
[1740755198107,2.7574,145.06,144.97,51.27525817]
[1740755198303,18.64964886,145.05,144.97,51.27525817]
[1740755198525,0.14216157,145.04,144.94,167.61825817]
[1740755198725,0.14216157,145.02,144.94,116.343]
[1740755198928,20.0,145.0,144.94,0.063]
[1740755199111,105.59181043,144.99,144.94,0.063]
[1740755199427,2.7593,144.96,144.94,0.063]
[1740755200057,78.7791,144.98,144.95,312.0]
[1740755200225,9.6566,144.98,144.95,312.0]
[1740755200414,85.6766,144.98,144.95,312.0]
[1740755200610,18.79181043,144.97,144.94,0.063]
[1740755200814,2.7591,144.98,144.94,0.063]
[1740755201314,0.14216157,144.96,144.94,0.063]
[1740755201516,2.0696,144.95,144.94,0.063]
[1740755201721,78.0896,144.95,144.94,0.063]
[1740755202639,76.02,144.98,144.94,0.063]
[1740755202940,76.02,145.01,144.94,0.063]
[1740755203128,2.0689,145.01,144.94,81.663]
[1740755203336,10.78,145.03,144.95,0.14216157]
[1740755203639,2.0684,145.04,145.02,312.0]
[1740755204022,12.8478,145.08,144.99,20.0]
[1740755204230,2.0678,145.08,144.99,156.5]
[1740755204747,2.0678,145.08,144.99,20.0]
[1740755204946,7.2373,145.08,144.98,136.5]
[1740755205137,2.0678,145.08,144.99,18.79181043]
[1740755205444,0.03,145.09,144.99,25.68861043]
[1740755205619,18.67964886,145.09,144.98,224.9973]
[1740755205951,0.03,145.09,144.99,18.79181043]
[1740755206324,0.03,145.09,144.99,155.29181043]
[1740755207123,0.03,145.09,145.08,312.0]
[1740755207522,18.67964886,145.09,145.08,312.0]
[1740755207742,18.64964886,145.05,144.96,89.8202]
[1740755208053,18.64964886,145.03,144.94,81.663]
[1740755208253,18.64964886,145.03,144.94,88.5622]
[1740755208448,76.02,145.04,144.94,81.663]
[1740755208823,0.14216157,145.03,144.94,81.663]
[1740755209044,76.02,145.02,144.94,81.663]
[1740755209422,94.66964886,145.01,144.94,0.063]
[1740755209625,76.02,145.01,144.94,0.063]
[1740755209852,0.14216157,145.03,144.94,0.063]
[1740755209853,2.0685,145.03,144.94,0.063]
[1740755210025,18.64964886,145.01,144.94,0.063]
[1740755210550,0.14216157,145.0,144.94,0.063]
[1740755210751,94.81181043,144.99,144.98,312.0]
[1740755210941,94.81181043,144.99,144.94,0.063]
[1740755211143,18.79181043,144.97,144.94,0.063]
[1740755211633,38.79181043,144.95,144.94,0.063]
[1740755211818,40.60356834,144.95,144.94,0.063]
[1740755212021,42.60356834,144.95,144.8,0.063]
[1740755212222,18.79181043,144.93,144.8,0.063]
[1740755212452,18.64964886,144.89,144.8,0.063]
[1740755212630,18.64964886,144.89,144.81,0.10457985]
[1740755213236,10.76,144.9,144.8,0.063]
[1740755213547,40.86271043,144.86,144.8,0.063]
[1740755213750,46.04011043,144.86,144.8,0.063]
[1740755213918,15.14542039,144.89,144.83,312.0]
[1740755214125,0.14216157,144.88,144.83,312.0]
[1740755214652,0.14216157,144.88,144.8,0.063]
[1740755214838,10.76,144.9,144.8,0.063]
[1740755215055,12.6669,144.95,144.81,20.75867666]
[1740755215248,25.4966,144.95,144.81,238.85867666]
[1740755215455,10.76,144.95,144.85,0.14216157]
[1740755215631,12.8283,145.04,144.88,20.61651509]
[1740755215829,16.3490849,145.04,144.88,236.74964886]
[1740755216030,20.0,145.01,144.89,0.14216157]
[1740755216235,102.8,145.01,144.91,0.14216157]
[1740755216451,12.8283,145.04,144.91,0.14216157]
[1740755216452,10.76,145.04,144.91,0.14216157]
[1740755216751,93.56,145.04,144.93,0.14216157]
[1740755216926,82.8,145.08,144.97,20.0]
[1740755217123,82.8,145.07,144.97,101.6]
[1740755217352,82.8,145.07,144.97,81.6]
[1740755217659,82.8,145.07,145.06,312.0]
[1740755217829,10.79,145.09,145.06,312.0]
[1740755218030,82.8,145.08,144.99,81.6]
[1740755218250,82.8,145.07,144.99,88.4968]
[1740755218755,82.8,145.07,144.99,81.6]
[1740755219630,82.8,145.07,144.99,81.663]
[1740755219843,82.8,145.07,144.99,0.063]
[1740755220035,0.03,145.09,145.0,18.79181043]
[1740755220242,0.03,145.09,145.0,218.1]
[1740755220447,0.03,145.09,145.0,81.6]
[1740755220746,20.0,145.04,144.99,0.063]
[1740755220945,29.55181043,145.05,145.03,312.0]
[1740755221138,101.59181043,145.04,145.03,312.0]
[1740755221341,101.59181043,145.03,144.99,0.063]
[1740755221528,84.8685,145.03,144.99,0.063]
[1740755221727,2.0685,145.03,144.99,0.063]
[1740755221928,2.0683,145.04,144.99,0.063]
[1740755222129,10.76,145.05,144.99,0.063]
[1740755222346,82.94216157,145.04,144.99,0.063]
[1740755222649,101.44964886,145.03,144.99,0.063]
[1740755222853,82.8,145.03,144.99,0.063]
[1740755223152,20.0,145.0,144.99,0.063]
[1740755223328,38.79181043,145.0,144.99,0.063]
[1740755223533,0.14216157,145.01,144.99,0.063]
[1740755223728,22.0689,145.0,144.99,0.063]
[1740755224326,84.8688,145.01,144.99,312.063]
[1740755224649,0.14216157,145.03,144.99,312.063]
[1740755224853,38.79181043,145.0,144.99,0.063]
[1740755225356,20.0,145.0,144.99,0.063]
[1740755225849,22.0689,145.0,144.99,0.063]
[1740755226942,20.0,145.0,144.99,0.063]
[1740755227341,2.0682,145.05,144.99,0.063]
[1740755227853,2.0681,145.06,145.04,312.0]
[1740755228354,2.0977,145.09,144.99,155.21264886]
[1740755228555,0.03,145.09,145.01,0.14216157]
[1740755228761,0.03,145.09,145.01,218.24216157]
[1740755229163,2.0977,145.09,145.01,218.1]
[1740755229331,20.0,145.05,144.99,81.663]
[1740755229664,2.21066157,145.03,144.99,0.063]
[1740755229963,1.8107427,145.02,144.99,0.063]
[1740755230129,0.14216157,145.02,144.99,0.063]
[1740755230334,1.9527243,145.02,144.99,0.063]
[1740755230543,82.8,145.01,144.9,96.4153]
[1740755230770,82.8,145.01,144.9,232.9153]
[1740755231060,54.268471,145.01,144.94,20.0]
[1740755231361,73.06028143,145.01,145.0,312.0]
[1740755231565,54.268471,145.01,145.0,312.0]
[1740755231753,54.268471,145.04,145.0,312.0]
[1740755231955,56.336971,145.03,144.91,218.1]
[1740755232136,74.87101554,145.02,144.91,225.0008]
[1740755232335,54.268471,145.02,144.92,0.14216157]
[1740755232835,54.268471,145.02,144.94,0.063]
[1740755233033,0.03,145.03,144.96,20.0]
[1740755233238,0.03,145.03,144.97,18.79181043]
[1740755233436,0.03,145.03,145.02,20.14216157]
[1740755233662,0.03,145.09,145.03,0.14216157]
[1740755233841,0.03,145.09,145.04,6.8946]
[1740755234041,0.03,145.09,145.05,0.14216157]
[1740755234439,0.03,145.09,145.04,88.4946]
[1740755234857,0.03,145.09,145.08,312.0]
[1740755235360,0.17216157,145.09,145.08,312.0]
[1740755235535,20.0,145.07,144.99,81.6]
[1740755235743,20.0,145.07,144.95,20.76486471]
[1740755235744,20.0,145.03,144.95,81.6]
[1740755235935,82.8,145.04,144.95,81.6]
[1740755236147,10.74,145.07,144.95,224.9988]
[1740755236148,2.0681,145.06,144.95,224.9988]
[1740755236355,20.0,145.02,144.95,81.6]
[1740755236657,82.8,145.04,144.95,81.6]
[1740755236859,82.8,145.04,144.95,88.4987]
[1740755237051,82.8,145.04,144.96,0.14216157]
[1740755237443,10.74,145.07,144.96,236.89181043]
[1740755237444,12.808,145.07,144.96,236.89181043]
[1740755237647,18.79181043,145.06,144.96,224.998]
[1740755237845,82.8,145.05,144.96,88.4983]
[1740755238364,20.0,145.01,144.94,0.063]
[1740755238562,82.8,145.03,145.0,312.0]
[1740755238861,82.8,145.02,145.0,312.0]
[1740755239060,82.8,145.02,144.94,0.063]
[1740755239360,82.8,145.02,144.94,6.9623]
[1740755239559,82.8,145.02,144.94,88.5623]
[1740755240065,84.8687,145.02,144.94,88.5623]
[1740755240471,84.8687,145.02,144.94,88.5622]
[1740755240767,82.8,145.06,144.97,20.0]
[1740755240960,0.03,145.09,144.97,20.0]
[1740755240961,93.54,145.08,144.98,0.14216157]
[1740755241156,84.8679,145.07,144.98,81.6]
[1740755241342,20.0,145.03,144.94,81.663]
[1740755241661,84.61061384,145.02,144.94,0.063]
[1740755241958,18.79181043,144.98,144.97,312.0]
[1740755242165,20.0,144.95,144.94,0.063]
[1740755242546,121.59181043,144.95,144.94,0.063]
[1740755242964,102.8,144.95,144.94,0.063]
[1740755243151,82.8,144.96,144.94,312.063]
[1740755243565,82.8,144.96,144.94,0.063]
[1740755243767,82.8,144.98,144.94,0.063]
[1740755244550,10.74,145.01,144.94,0.063]
[1740755244768,2.0687,145.02,144.94,81.663]
[1740755244950,0.14216157,145.01,144.94,81.663]
[1740755245272,18.79181043,145.01,144.94,81.663]
[1740755245575,20.0,145.02,144.94,81.663]
[1740755245876,2.0682,145.05,144.95,6.8989]
[1740755246074,82.8,145.05,144.95,105.7462]
[1740755246380,82.8,145.05,144.96,18.79181043]
[1740755246669,82.8,145.05,145.04,312.0]
[1740755246874,0.03,145.07,145.04,312.0]
[1740755247175,0.03,145.07,145.03,0.14216157]
[1740755247382,0.03,145.07,145.03,218.24216157]
[1740755247844,0.03,145.07,145.06,27.03576157]
[1740755248047,0.03,145.07,145.06,88.4936]
[1740755248264,0.03,145.07,145.06,81.6]
[1740755248576,0.03,145.09,145.07,0.14216157]
[1740755248780,0.03,145.09,145.07,236.89181043]
[1740755249273,0.03,145.09,145.07,218.24216157]
[1740755250166,0.03,145.09,145.08,330.79181043]
[1740755250367,0.03,145.09,145.08,312.0]
[1740755251164,0.17216157,145.09,144.99,7.8668]
[1740755251370,18.64964886,145.08,144.99,7.8668]